bitfinex/quotes_ETHUSD_20241216
["timestamp","ask_amount","ask_price","bid_price","bid_amount"]
[1734309408548,0.7995,3991.1,3989.7,0.85431221]
[1734309408837,1.91137231,3991.1,3989.8,1.03031631]
[1734309408987,2.5049,3992.2,3990.6,2.50587]
[1734309409546,2.5049,3992.2,3990.7,0.85431645]
[1734309409709,2.50462,3992.7,3990.8,0.85419639]
[1734309409907,2.50462,3992.7,3991.0,2.50562]
[1734309410315,4.00825575,3993.5,3991.1,2.13510897]
[1734309410441,4.00825575,3993.5,3990.9,3.53598631]
[1734309410792,4.25825575,3993.5,3990.5,1.03031631]
[1734309411088,2.50494,3992.2,3990.6,0.85443902]
[1734309411294,2.50494,3992.2,3990.4,3.53630631]
[1734309411588,2.50494,3992.2,3990.6,2.50582]
[1734309411805,1.05100735,3993.5,3990.4,1.03031631]
[1734309412089,0.7995,3993.4,3991.1,1.03031631]
[1734309412397,0.7995,3993.4,3992.0,2.50497]
[1734309413373,0.7995,3993.4,3991.4,1.54547447]
[1734309413374,0.7995,3993.4,3991.4,1.03031631]
[1734309413696,0.7995,3993.4,3991.9,2.50501]
[1734309413844,0.7995,3993.4,3992.1,2.50491]
[1734309414052,0.7995,3993.4,3991.6,2.50526]
[1734309414053,0.7995,3993.4,3991.8,2.50512]
[1734309414249,0.7716,3993.4,3991.5,1.03031631]
[1734309414494,0.7716,3993.3,3991.6,0.85415648]
[1734309414662,0.7716,3992.6,3991.2,1.03031631]
[1734309414869,1.05100735,3993.5,3991.0,1.54547447]
[1734309414870,0.7716,3992.5,3991.3,0.854301]
[1734309415088,0.7716,3992.5,3991.0,3.53593631]
[1734309415287,0.7716,3993.4,3992.7,2.50453]
[1734309415559,0.7716,3993.4,3992.5,2.50465]
[1734309415805,0.7716,3993.4,3992.3,1.03031631]
[1734309416113,0.7716,3993.4,3992.8,2.50448]
[1734309416271,0.7716,3993.4,3992.6,2.5046]
[1734309416472,0.7716,3993.4,3992.7,2.50452]
[1734309416686,0.7716,3993.4,3992.6,2.50458]
[1734309417008,0.7716,3993.4,3992.5,2.50466]
[1734309417157,0.7716,3993.4,3992.6,2.5046]
[1734309417360,0.7716,3993.4,3992.2,1.03031631]
[1734309417361,0.7716,3993.4,3992.7,3.35802922]
[1734309417560,0.7716,3993.4,3992.8,0.85343001]
[1734309417878,0.7716,3993.4,3992.4,3.53504631]
[1734309418202,0.7716,3993.4,3992.5,2.13393516]
[1734309418402,0.7716,3993.4,3992.4,2.50473]
[1734309418701,0.7716,3993.4,3992.5,0.85371222]
[1734309419013,1.05100735,3993.5,3993.2,2.50425]
[1734309419461,1.05100735,3993.5,3993.4,2.50413]
[1734309419668,1.05100735,3993.5,3992.8,1.03031631]
[1734309419974,1.05100735,3993.5,3993.1,2.50428]
[1734309420474,1.05100735,3993.5,3993.2,0.85317194]
[1734309420696,1.05100735,3993.5,3993.0,2.50436]
[1734309421021,1.05100735,3993.5,3992.5,1.82021631]
[1734309421225,1.05100735,3993.5,3993.3,2.50418]
[1734309421557,0.00303928,3993.8,3993.3,2.50418]
[1734309421762,0.00303928,3993.8,3993.5,2.50401]
[1734309421996,0.00303928,3993.8,3993.5,2.45401]
[1734309422194,0.00303928,3993.8,3992.8,1.03031631]
[1734309422403,0.00303928,3993.8,3992.9,4.6367603]
[1734309422662,0.00303928,3993.8,3993.5,2.50403]
[1734309422863,0.00303928,3993.8,3993.1,0.8279]
[1734309423094,0.00303928,3993.8,3993.6,2.50399]
[1734309423359,0.00303928,3993.8,3993.3,1.03031631]
[1734309423623,0.00303928,3993.8,3993.1,2.5043]
[1734309423818,0.00303928,3993.8,3992.9,2.50444]
[1734309423961,0.00303928,3993.8,3993.0,0.85264894]
[1734309424165,0.00303928,3993.8,3993.0,2.50433]
[1734309424592,0.00303928,3993.8,3992.7,2.63208631]
[1734309424775,0.00303928,3993.8,3992.8,2.13197687]
[1734309424976,0.00303928,3993.8,3993.6,2.50399]
[1734309425961,0.01055754,3995.1,3993.7,0.8124]
[1734309426162,0.01055754,3995.1,3994.6,0.8124]
[1734309426464,0.01055754,3995.1,3994.8,3.53355631]
[1734309426658,0.8029,3996.0,3994.8,0.83866083]
[1734309426932,0.8029,3996.0,3995.3,2.50293]
[1734309427214,3.55388239,3996.8,3994.6,1.84271631]
[1734309427215,0.8325,3996.4,3994.6,1.84271631]
[1734309427360,0.8325,3996.4,3994.7,0.8508515]
[1734309427560,0.8325,3996.4,3994.6,1.16630507]
[1734309427762,0.8325,3996.4,3994.3,1.15366666]
[1734309427763,2.50251,3996.0,3994.4,3.88771138]
[1734309427957,0.7884,3996.1,3994.3,0.12335035]
[1734309428192,0.7884,3996.1,3994.7,2.50329]
[1734309428411,0.7884,3996.1,3994.4,2.50349]
[1734309428570,0.7884,3996.1,3994.3,0.12335035]
[1734309428777,0.7884,3996.1,3993.7,0.12441382]
[1734309428778,2.9572484,3996.0,3993.7,0.12441382]
[1734309429119,3.29135,3995.3,3993.8,2.50385]
[1734309429663,0.7884,3995.3,3993.3,1.03031631]
[1734309429863,0.7884,3995.3,3993.2,2.50425]
[1734309429864,3.29136,3995.3,3993.2,2.50425]
[1734309430066,0.7884,3995.3,3993.3,2.25439683]
[1734309430296,0.7884,3995.3,3993.3,0.12543475]
[1734309430501,2.50331,3994.7,3992.9,1.03031631]
[1734309430764,0.7884,3994.7,3992.6,1.03031631]
[1734309430959,2.50352,3994.4,3992.6,2.12954565]
[1734309431159,2.50352,3994.4,3992.9,2.63006492]
[1734309431409,2.9572484,3995.3,3992.9,2.63006492]
[1734309431719,2.50344,3994.5,3993.0,2.50434]
[1734309432014,2.50352,3994.4,3992.9,0.12563492]
[1734309432362,2.5034,3994.6,3993.0,2.50437]
[1734309432679,2.50351,3994.4,3993.0,2.50437]
[1734309433084,2.50351,3994.4,3992.9,0.12563492]
[1734309433286,2.50341,3994.6,3993.0,2.50436]
[1734309433741,2.50341,3994.6,3993.0,2.52939811]
[1734309434041,1.05588134,3995.2,3992.9,0.12563492]
[1734309434199,2.50352,3994.4,3992.9,0.12563492]
[1734309434394,0.7694,3994.3,3992.9,0.12563492]
[1734309434662,0.7694,3994.3,3993.0,0.87640215]
[1734309434786,0.7694,3994.3,3993.1,0.85136655]
[1734309434980,0.7694,3994.3,3993.0,2.50434]
[1734309435245,0.7694,3994.3,3993.2,2.50421]
[1734309435944,0.7694,3994.3,3992.9,2.63006492]
[1734309436104,0.7694,3994.3,3992.9,0.12563492]
[1734309436306,0.7694,3994.3,3993.0,2.50437]
[1734309437533,0.7694,3994.3,3992.9,0.12563492]
[1734309437534,0.7853,3994.9,3993.8,2.50382]
[1734309437833,0.7853,3994.9,3993.8,2.50385]
[1734309437987,0.7853,3994.9,3993.9,2.50379]
[1734309438532,0.7853,3994.9,3993.5,1.03031631]
[1734309438699,0.7853,3994.9,3993.6,3.15563999]
[1734309438908,0.7853,3994.9,3994.0,2.5037]
[1734309439106,0.7853,3994.9,3994.1,2.50364]
[1734309439406,0.7853,3994.9,3994.2,2.50361]
[1734309439728,1.05588134,3995.2,3993.8,0.7762]
[1734309439929,1.05588134,3995.2,3994.1,1.03031631]
[1734309440092,1.05588134,3995.2,3994.6,2.50333]
[1734309440319,1.05588134,3995.2,3994.3,2.50351]
[1734309440531,0.7593,3995.4,3994.8,2.50321]
[1734309440829,0.7943,3996.1,3993.9,5.1608623]
[1734309441031,0.7943,3996.1,3994.4,2.50348]
[1734309441228,0.7943,3996.1,3994.2,2.50363]
[1734309441428,3.25526,3995.6,3993.4,1.82141631]
[1734309441656,2.59765823,3995.9,3993.6,2.50399]
[1734309441657,2.50315,3995.0,3993.6,2.50399]
[1734309441868,0.7525,3994.9,3993.4,0.7911]
[1734309442171,0.7525,3994.9,3994.3,2.50352]
[1734309442557,0.7525,3994.9,3994.0,2.50371]
[1734309442754,0.7525,3994.9,3993.7,2.62600798]
[1734309443273,0.7525,3994.9,3993.1,2.50427]
[1734309443413,0.7525,3994.9,3993.2,2.50424]
[1734309443414,2.5034,3994.6,3993.2,2.50424]
[1734309443616,2.5034,3994.6,3992.8,0.7911]
[1734309443617,0.7525,3994.5,3992.8,0.7911]
[1734309443919,2.50371,3994.1,3992.7,2.50456]
[1734309444151,2.50371,3994.1,3992.8,2.50449]
[1734309444355,0.7525,3994.5,3992.9,2.50442]
[1734309444519,0.7525,3994.5,3992.4,0.7911]
[1734309444520,2.50365,3994.2,3992.6,2.5046]
[1734309444718,2.50365,3994.2,3992.7,2.50453]
[1734309444934,2.50365,3994.2,3992.8,2.50449]
[1734309445132,2.5037,3994.1,3992.7,2.50454]
[1734309445468,2.5037,3994.1,3992.4,0.7911]
[1734309445631,2.50366,3994.2,3992.7,2.50451]
[1734309446264,0.7525,3994.5,3992.4,0.7911]
[1734309446477,0.7654,3993.7,3992.6,0.12592605]
[1734309446977,0.7654,3993.7,3992.0,0.7885]
[1734309447154,2.50355,3994.4,3991.5,2.06063263]
[1734309447155,2.50415,3993.4,3991.6,2.50526]
[1734309447482,2.50386,3993.9,3992.3,2.50477]
[1734309447617,0.7654,3994.3,3991.8,6.42506285]
[1734309447837,2.50363,3994.2,3992.7,2.50452]
[1734309448036,0.7654,3994.3,3991.9,0.7885]
[1734309448270,2.50376,3994.0,3992.5,2.50467]
[1734309448472,2.50376,3994.0,3991.9,9.21264643]
[1734309448473,2.50376,3994.0,3992.1,2.50494]
[1734309448694,0.7654,3994.3,3992.2,2.50488]
[1734309449094,0.7654,3994.3,3991.9,0.9374947]
[1734309449095,0.7654,3994.3,3993.0,2.50437]
[1734309449274,3.26897,3994.3,3993.0,2.50437]
[1734309449438,3.26897,3994.3,3992.7,3.26623]
[1734309449439,0.7654,3994.3,3992.7,3.26623]
[1734309449647,2.50389,3993.8,3992.2,0.768]
[1734309449874,0.7963,3994.2,3992.2,2.50485]
[1734309450142,0.7963,3994.2,3991.7,2.50519]
[1734309450143,3.30051,3993.3,3991.6,1.03031631]
[1734309450484,3.30051,3993.3,3991.4,2.50537]
[1734309450811,3.30051,3993.3,3991.3,0.768]
[1734309450812,0.8236,3993.7,3991.3,0.768]
[1734309450944,0.8236,3992.7,3991.3,0.768]
[1734309451143,3.3282,3992.7,3991.3,3.27342]
[1734309451606,0.8236,3992.7,3991.5,2.5053]
[1734309452158,0.8236,3992.7,3991.3,3.27342]
[1734309452363,3.32818,3992.7,3991.3,3.27342]
[1734309452624,0.8236,3992.7,3991.3,0.768]
[1734309452771,0.8236,3992.7,3991.9,2.50505]
[1734309453161,1.0318912,3995.0,3991.8,6.3]
[1734309453363,2.5023,3996.4,3994.4,2.50345]
[1734309453610,2.5023,3996.4,3993.4,1.03031631]
[1734309453611,0.7888,3995.8,3994.5,2.50341]
[1734309453780,2.5027,3995.7,3994.2,2.50362]
[1734309454110,2.50276,3995.6,3994.2,2.50362]
[1734309454612,0.7888,3995.8,3993.8,1.03031631]
[1734309454822,2.50229,3996.4,3993.5,1.03031631]
[1734309454823,0.7888,3994.6,3993.5,1.03031631]
[1734309454962,0.7888,3994.6,3993.6,0.85155403]
[1734309455161,0.7888,3994.6,3993.4,1.03031631]
[1734309455410,0.7888,3994.6,3993.5,2.13000701]
[1734309455625,0.7888,3994.6,3993.7,2.50392]
[1734309455782,3.28275,3995.7,3994.0,1.03031631]
[1734309455977,3.28275,3995.7,3994.2,2.5036]
[1734309456314,2.50277,3995.6,3994.3,1.49630873]
[1734309456471,0.78,3995.7,3994.3,2.77401314]
[1734309456815,0.78,3995.7,3994.4,2.12970243]
[1734309457122,0.78,3995.7,3994.5,2.53545417]
[1734309457267,0.78,3995.7,3994.6,2.12970243]
[1734309457467,0.78,3995.7,3994.6,0.40575174]
[1734309457668,0.78,3995.7,3994.7,2.12971138]
[1734309457899,0.78,3995.7,3994.6,0.40575174]
[1734309458080,0.78,3995.7,3994.4,2.50349]
[1734309458303,0.78,3995.7,3994.5,2.53590931]
[1734309458480,0.78,3995.7,3994.5,0.40575174]
[1734309458687,0.78,3995.7,3994.6,2.5357669]
[1734309458905,0.78,3995.7,3994.7,0.85195666]
[1734309459212,0.78,3995.7,3994.7,3.35525666]
[1734309459415,0.78,3995.7,3994.8,0.40575174]
[1734309460822,0.78,3995.7,3994.7,1.02751209]
[1734309461115,0.78,3995.7,3994.8,0.85152613]
[1734309461116,2.50275,3995.6,3994.8,0.85152613]
[1734309461271,0.78,3995.7,3994.1,2.50367]
[1734309461272,2.50283,3995.5,3994.1,2.50367]
[1734309461474,0.78,3995.7,3993.8,2.85233263]
[1734309461475,2.50296,3995.3,3994.2,2.12916637]
[1734309461676,3.27622,3995.2,3993.6,4.04942447]
[1734309461899,3.27622,3995.2,3993.7,4.63419963]
[1734309462069,3.27622,3995.2,3993.8,2.13026963]
[1734309462282,0.7732,3995.2,3993.8,2.13026963]
[1734309462505,0.7732,3995.2,3994.0,2.50375]
[1734309462877,0.7732,3995.2,3994.1,0.85210785]
[1734309463626,2.50339,3994.6,3993.5,1.54547447]
[1734309463823,2.50346,3994.5,3993.6,0.85218993]
[1734309463992,0.50842919,3994.2,3992.9,4.04990447]
[1734309464185,0.50842919,3994.2,3993.0,0.85242677]
[1734309464400,0.7732,3994.1,3992.7,1.54547447]
[1734309464740,0.7732,3994.1,3994.0,3.81886]
[1734309466653,0.7732,3994.1,3994.0,2.56698]
[1734309466858,3.2776,3993.0,3991.7,1.54547447]
[1734309467155,2.50451,3992.8,3991.8,0.85263584]
[1734309467363,0.7732,3993.0,3991.3,1.54547447]
[1734309467653,2.50375,3994.0,3990.9,2.50568]
[1734309467654,0.8306,3993.5,3990.9,2.50568]
[1734309467800,0.8306,3992.3,3991.0,0.85238627]
[1734309468004,0.49778987,3992.1,3991.0,0.85238627]
[1734309468202,0.49778987,3992.1,3990.7,1.54547447]
[1734309468203,0.49778987,3992.1,3990.7,2.50579]
[1734309468441,0.49778987,3992.1,3990.5,0.1256614]
[1734309468744,0.49778987,3992.1,3990.7,2.50579]
[1734309468916,0.49778987,3992.1,3990.8,0.85174649]
[1734309469259,0.49778987,3992.1,3990.5,0.1256614]
[1734309469462,0.49778987,3992.1,3990.6,0.85056263]
[1734309469762,3.00273987,3992.1,3990.7,2.50578]
[1734309470374,3.00273987,3992.1,3990.4,2.50597]
[1734309470375,2.50503,3992.0,3990.4,2.50597]
[1734309470568,0.7789,3992.0,3990.4,2.506]
[1734309470727,0.7789,3992.0,3989.8,1.54547447]
[1734309470932,0.7789,3991.9,3989.9,0.8506484]
[1734309471250,0.50552906,3991.1,3989.8,0.12720861]
[1734309471454,2.50534,3991.5,3990.1,2.50616]
[1734309472008,2.50517,3991.8,3989.8,2.63357861]
[1734309472209,0.7789,3991.9,3990.2,2.5061]
[1734309472210,2.50524,3991.7,3990.2,2.5061]
[1734309472422,0.50217355,3991.4,3990.0,2.50625]
[1734309472665,0.50217355,3991.4,3990.1,2.50619]
[1734309473214,0.50217355,3991.4,3990.1,2.50614]
[1734309473538,0.50217355,3991.4,3989.8,0.12720861]
[1734309473539,0.8009,3991.3,3989.8,0.12720861]
[1734309473746,2.50565,3991.0,3989.7,0.7775]
[1734309473966,2.50565,3991.0,3989.5,5.45083775]
[1734309474174,2.50565,3991.0,3989.0,4.19526746]
[1734309474175,0.8009,3990.8,3988.6,1.8365509]
[1734309474335,0.8009,3990.8,3989.0,2.50685]
[1734309474535,0.8009,3990.8,3988.7,2.12556198]
[1734309474536,0.8009,3990.8,3989.4,2.50663]
[1734309474723,0.50678111,3990.5,3989.4,2.50663]
[1734309475138,0.50678111,3990.5,3988.7,6.3]
[1734309475362,0.50678111,3990.5,3988.6,1.95916447]
[1734309475363,0.8009,3990.8,3989.2,1.0287509]
[1734309475673,0.8009,3990.8,3989.2,3.15372403]
[1734309475869,0.8009,3990.8,3989.6,2.50649]
[1734309476216,0.8009,3990.8,3989.1,6.3]
[1734309476217,0.8009,3990.8,3989.1,2.50683]
[1734309476415,0.8009,3990.8,3989.4,2.50664]
[1734309476655,0.8009,3990.8,3989.3,2.5067]
[1734309476872,0.8009,3990.8,3989.7,2.50639]
[1734309477166,0.8009,3990.8,3989.8,2.50637]
[1734309477961,0.8009,3990.8,3990.1,2.50618]
[1734309478514,0.49940016,3991.1,3990.4,2.50598]
[1734309478719,0.49940016,3991.1,3990.0,0.813]
[1734309478720,0.8158,3991.3,3990.0,0.813]
[1734309478919,0.8158,3991.3,3990.5,2.50593]
[1734309479119,0.8158,3991.3,3990.6,2.50586]
[1734309479377,0.8158,3991.3,3990.0,0.813]
[1734309479665,0.49243761,3991.6,3990.8,2.50572]
[1734309480222,0.49243761,3991.6,3990.0,0.813]
[1734309480465,0.49243761,3991.6,3990.3,2.50605]
[1734309480931,0.49243761,3991.6,3989.7,6.3]
[1734309480932,0.8238,3991.5,3989.7,6.3]
[1734309481136,2.50553,3991.2,3989.8,2.50637]
[1734309481359,0.8238,3991.5,3990.1,2.50614]
[1734309481360,3.30376,3991.5,3990.1,2.50614]
[1734309481536,0.51107119,3990.7,3990.1,2.50614]
[1734309482296,0.7765,3990.6,3989.8,2.50635]
[1734309482518,0.7765,3990.6,3988.7,0.8253]
[1734309482865,0.7765,3990.6,3988.9,2.50692]
[1734309482866,0.50275621,3990.0,3988.9,2.50692]
[1734309483068,0.7729,3989.9,3988.4,0.7603]
[1734309483321,0.7729,3989.9,3988.8,0.12552625]
[1734309483467,0.7729,3989.9,3989.1,2.50678]
[1734309483823,0.7729,3989.9,3988.8,2.507]
[1734309484483,0.7729,3989.9,3988.6,2.50712]
[1734309484484,3.27923,3989.9,3988.6,2.50712]
[1734309484886,2.50642,3989.8,3988.4,2.50724]
[1734309485072,2.50642,3989.8,3988.3,0.12677446]
[1734309485268,0.7729,3989.9,3988.6,2.50713]
[1734309485470,3.29215,3989.7,3988.3,2.50728]
[1734309485671,3.00919787,3989.3,3988.0,2.50748]
[1734309485875,3.00919787,3989.3,3987.9,2.50758]
[1734309485876,3.29248,3989.2,3987.9,2.50758]
[1734309486119,3.29248,3989.2,3987.1,2.60305263]
[1734309486120,2.50726,3988.5,3987.0,0.283143]
[1734309486320,0.7857,3988.3,3987.0,0.283143]
[1734309486630,2.50771,3987.7,3987.0,0.283143]
[1734309486961,2.60305263,3988.7,3987.0,0.283143]
[1734309486962,0.5038408,3987.3,3987.0,0.283143]
[1734309487094,0.5038408,3987.3,3985.6,2.65004707]
[1734309487095,2.56676,3985.7,3985.6,0.14102707]
[1734309487289,2.56676,3985.7,3984.5,0.39165942]
[1734309487290,0.0578,3985.7,3984.5,0.39165942]
[1734309487537,0.56579981,3985.7,3984.5,0.39165942]
[1734309487672,0.56579981,3985.7,3984.9,2.50944]
[1734309487673,0.0578,3985.7,3984.9,2.50944]
[1734309487871,0.0578,3985.7,3984.5,0.39165942]
[1734309488071,2.66085263,3985.6,3984.5,0.39165942]
[1734309488321,2.60305263,3985.6,3984.5,0.39165942]
[1734309488504,0.608,3985.5,3984.5,0.39165942]
[1734309488716,2.50962,3984.7,3984.5,0.39165942]
[1734309489037,0.50709785,3984.7,3982.7,0.12446947]
[1734309489238,0.50709785,3984.7,3983.0,2.51066]
[1734309489530,0.50709785,3984.7,3983.1,2.51057]
[1734309489839,2.60305263,3984.3,3982.6,0.1654235]
[1734309490049,0.608,3984.6,3982.6,2.6763335]
[1734309490050,2.50994,3984.2,3982.6,2.6763335]
[1734309490191,0.608,3984.1,3982.6,0.1654235]
[1734309490501,3.11802,3984.1,3982.6,0.1654235]
[1734309490903,0.49000175,3983.8,3982.6,0.1654235]
[1734309491540,3.00018175,3983.8,3982.6,0.1654235]
[1734309491690,2.95923035,3984.0,3982.6,0.1654235]
[1734309492310,0.608,3984.1,3982.7,2.51085]
[1734309492610,3.118,3984.1,3982.6,0.1654235]
[1734309492996,2.51009,3984.0,3982.6,0.1654235]
[1734309493152,0.608,3984.1,3982.6,0.1654235]
[1734309493319,0.608,3984.1,3983.2,2.51052]
[1734309493520,0.608,3984.1,3982.7,0.7668]
[1734309493720,2.95923035,3985.2,3983.7,2.51022]
[1734309493721,0.608,3985.1,3983.7,2.51022]
[1734309494053,0.608,3985.1,3983.7,2.5102]
[1734309494054,0.50977243,3984.9,3983.7,2.5102]
[1734309494264,0.50977243,3984.9,3983.7,2.51017]
[1734309494420,0.50977243,3984.9,3982.7,7.0668]
[1734309494618,0.608,3985.1,3982.7,7.0668]
[1734309494861,0.608,3985.1,3984.2,2.50988]
[1734309495172,0.608,3985.1,3984.3,2.50982]
[1734309495465,0.608,3985.1,3982.7,0.7668]
[1734309495466,0.608,3986.3,3983.7,9.25923035]
[1734309495766,0.608,3986.3,3984.5,2.95923035]
[1734309495933,0.608,3986.3,3985.6,2.509]
[1734309496449,0.608,3987.6,3986.4,2.50849]
[1734309496818,0.608,3987.6,3985.3,0.812]
[1734309496819,0.51263265,3987.5,3985.3,0.812]
[1734309497019,0.51263265,3987.5,3985.6,2.50903]
[1734309497219,0.608,3987.6,3986.8,2.50825]
[1734309497451,0.608,3988.5,3986.9,2.50818]
[1734309497646,0.608,3988.5,3986.4,2.50851]
[1734309497859,0.608,3988.5,3987.1,2.50807]
[1734309498083,0.608,3988.5,3986.1,0.812]
[1734309498225,0.608,3988.5,3986.4,2.50851]
[1734309498423,0.608,3988.5,3987.1,2.50803]
[1734309498656,0.608,3988.5,3987.3,2.50794]
[1734309498969,0.608,3988.5,3986.7,2.50832]
[1734309499173,0.608,3988.5,3987.4,2.50788]
[1734309499669,0.608,3988.5,3987.4,2.50786]
[1734309499835,0.608,3988.5,3986.5,2.50846]
[1734309500175,0.608,3988.5,3987.7,2.50768]
[1734309500315,0.608,3988.5,3987.4,2.50787]
[1734309500539,1.10679501,3988.5,3986.4,0.12226621]
[1734309500741,2.50737,3988.3,3986.8,2.50825]
[1734309500992,1.10679501,3988.5,3986.4,0.12226621]
[1734309501141,0.608,3988.5,3987.4,2.50786]
[1734309501342,0.608,3988.5,3987.6,2.50771]
[1734309501845,0.608,3988.5,3986.5,6.3]
[1734309502040,0.608,3988.5,3987.4,2.50788]
[1734309502895,0.608,3988.5,3987.1,2.50806]
[1734309503251,0.608,3988.5,3987.3,2.50794]
[1734309503446,0.608,3988.5,3987.4,2.50787]
[1734309504167,0.608,3988.5,3986.5,6.3]
[1734309504382,2.50728,3988.4,3986.8,2.50826]
[1734309504762,2.50728,3988.4,3986.9,2.50818]
[1734309505069,0.608,3988.5,3986.9,2.50818]
[1734309505273,0.608,3988.5,3986.4,0.12226621]
[1734309505274,0.608,3988.5,3987.1,2.50803]
[1734309505476,0.50472569,3988.2,3987.1,2.50803]
[1734309505705,0.50472569,3988.2,3987.1,2.50807]
[1734309505877,0.50472569,3988.2,3986.5,2.50846]
[1734309505878,0.50472569,3988.2,3987.3,2.50792]
[1734309506078,0.50472569,3988.2,3986.5,6.3]
[1734309506367,0.50472569,3988.2,3987.6,2.50776]
[1734309506755,0.608,3988.5,3987.6,2.50776]
[1734309506958,0.608,3988.5,3987.1,0.7774]
[1734309507306,1.04002374,3988.7,3988.5,2.50719]
[1734309507513,0.608,3989.5,3988.5,2.50719]
[1734309507804,0.608,3989.5,3988.5,2.40719]
[1734309508106,0.608,3989.5,3987.6,6.3]
[1734309508107,0.608,3989.5,3989.1,2.5068]
[1734309508311,0.608,3990.0,3989.1,2.5068]
[1734309508515,0.608,3990.0,3989.3,2.50668]
[1734309508660,0.608,3990.0,3988.1,9.25923035]
[1734309508861,0.14500384,3992.8,3988.1,9.25923035]
[1734309508862,0.608,3990.6,3988.7,2.95923035]
[1734309509176,0.608,3991.8,3990.4,2.50598]
[1734309509383,0.608,3991.8,3989.4,6.3]
[1734309509709,1.11737444,3991.8,3990.7,2.50579]
[1734309510510,1.11737444,3991.8,3989.3,2.95923035]
[1734309510511,1.05433139,3991.7,3990.8,2.50573]
[1734309510820,1.11737444,3991.8,3990.5,2.50593]
[1734309510961,1.11737444,3991.8,3990.0,0.8141]
[1734309511161,1.11737444,3991.8,3989.6,2.50651]
[1734309511162,2.50531,3991.6,3989.6,2.50651]
[1734309511380,1.11737444,3991.8,3989.5,0.7977]
[1734309511590,2.50533,3991.5,3989.6,2.50651]
[1734309511835,0.608,3991.7,3988.5,0.7977]
[1734309511970,0.608,3990.6,3989.0,2.50686]
[1734309512167,2.50596,3990.5,3989.0,2.50686]
[1734309512374,1.11887776,3990.6,3988.7,2.50704]
[1734309513009,1.11887776,3990.6,3988.5,0.7977]
[1734309513010,2.50614,3990.2,3988.8,2.50699]
[1734309513762,1.04555381,3990.5,3988.5,0.7977]
[1734309513763,2.50601,3990.4,3988.5,0.7977]
[1734309513968,2.50635,3989.9,3988.5,0.7977]
[1734309514368,1.04555381,3990.5,3988.3,2.50731]
[1734309514670,1.04555381,3990.5,3987.3,3.27843]
[1734309514671,0.608,3988.8,3987.3,3.27843]
[1734309514868,0.608,3988.8,3987.4,2.50786]
[1734309515073,0.608,3988.8,3987.6,2.50774]
[1734309515296,0.608,3988.8,3987.3,3.27843]
[1734309515641,2.50701,3988.8,3986.8,2.50824]
[1734309515834,2.50729,3988.4,3986.7,0.89548465]
[1734309515970,0.48851948,3988.9,3986.9,2.50818]
[1734309516169,2.50695,3989.0,3986.7,0.89548465]
[1734309516383,0.49923746,3989.3,3986.9,2.95923035]
[1734309516594,2.50647,3989.7,3987.2,1.504]
[1734309516768,1.05402991,3989.8,3987.1,2.50805]
[1734309516983,0.49713393,3989.4,3987.8,2.50761]
[1734309517170,0.49713393,3989.4,3988.0,2.5075]
[1734309517377,1.06277471,3989.7,3988.6,2.50712]
[1734309517687,2.50623,3990.1,3988.6,2.5071]
[1734309518023,2.506,3990.5,3988.2,0.7658]
[1734309518327,0.49067309,3990.4,3989.1,2.50681]
[1734309518505,0.49067309,3990.4,3988.3,6.3]
[1734309518819,2.95923035,3991.5,3988.2,0.7658]
[1734309518820,2.63037708,3991.4,3988.2,0.7658]
[1734309519112,2.50647,3989.7,3988.2,0.7658]
[1734309519296,0.49518065,3990.2,3988.2,0.7658]
[1734309519530,3.00135065,3990.2,3988.6,2.50713]
[1734309519702,2.50624,3990.1,3988.6,2.50713]
[1734309519903,0.49518065,3990.2,3988.6,2.50713]
[1734309520317,0.49518065,3990.2,3988.2,0.7658]
[1734309520318,2.50634,3989.9,3988.2,0.7658]
[1734309520602,2.50621,3990.1,3988.5,2.50715]
[1734309520807,2.50621,3990.1,3988.6,2.50713]
[1734309521458,0.49518065,3990.2,3988.3,2.5073]
[1734309521662,0.4926663,3990.2,3988.2,0.7658]
[1734309521820,2.9988463,3990.2,3987.7,7.0684]
[1734309522017,0.4926663,3990.2,3988.3,2.50731]
[1734309522205,2.50652,3989.6,3988.0,2.50748]
[1734309522408,0.4926663,3990.2,3988.0,2.50748]
[1734309522717,2.95923035,3990.3,3987.7,0.7684]
[1734309522924,2.50614,3990.2,3987.1,0.7684]
[1734309523174,2.50702,3988.8,3987.3,2.50793]
[1734309523476,0.48849278,3988.8,3987.1,0.7684]
[1734309523936,0.48849278,3988.8,3987.2,2.50802]
[1734309524141,0.48849278,3988.8,3987.5,2.50782]
[1734309524807,0.48849278,3988.8,3987.6,2.50776]
[1734309525003,0.48849278,3988.8,3987.1,0.7684]
[1734309525219,2.50649,3989.7,3988.1,2.50741]
[1734309525404,0.50833107,3989.3,3988.2,2.50738]
[1734309525650,0.50833107,3989.3,3987.7,2.50767]
[1734309525953,0.50833107,3989.3,3988.2,2.50737]
[1734309526123,0.50833107,3989.3,3987.9,2.50754]
[1734309526314,0.50833107,3989.3,3987.6,6.3]
[1734309526315,2.50685,3989.1,3987.7,2.50769]
[1734309526655,0.50833107,3989.3,3987.6,6.3]
[1734309526854,2.50655,3989.6,3988.1,2.50743]
[1734309527058,2.50655,3989.6,3988.2,2.50734]
[1734309527261,2.50655,3989.6,3987.4,6.3]
[1734309527262,2.50616,3990.2,3988.3,2.50729]
[1734309527464,2.50646,3989.7,3988.3,2.50729]
[1734309527958,0.49645922,3989.6,3988.3,2.50729]
[1734309528131,0.49645922,3989.6,3988.3,3.28579]
[1734309528340,2.50589,3990.6,3989.1,2.50678]
[1734309528540,2.50597,3990.5,3989.1,2.50678]
[1734309528970,2.50605,3990.4,3988.8,2.50699]
[1734309529137,2.50609,3990.3,3988.8,2.50699]
[1734309529332,0.49194869,3990.2,3988.9,2.5069]